fUST/lending_fUST_20250808
["ID","MTS","AMOUNT","RATE_DAILY","PERIOD"]
[377997132,1754657999357,442.47033637,0.000199,2]
[377997133,1754657999455,442.47033622,0.00021655,2]
[377997134,1754657999744,442.47033622,0.00023409,2]
[377997143,1754658069232,250.0,0.00031715,30]
[377997144,1754658069785,250.0,0.00031715,30]
[377997145,1754658070252,250.0,0.00031715,30]
[377997146,1754658070808,250.0,0.00031715,30]
[377997147,1754658071235,250.0,0.00031715,30]
[377997148,1754658071691,250.0,0.00031715,30]
[377997149,1754658072122,250.0,0.00031715,30]
[377997150,1754658072661,350.98661,0.00031715,30]
[377997151,1754658075373,500.0,0.00010959,30]
[377997152,1754658075872,500.0,0.00010959,30]
[377997153,1754658076575,500.0,0.00010959,30]
[377997154,1754658077036,500.0,0.00010959,30]
[377997156,1754658077532,500.0,0.00010959,30]
[377997157,1754658078193,500.0,0.00010959,30]
[377997158,1754658078654,500.0,0.00010959,30]
[377997159,1754658079120,180.25649127,0.00010959,30]
[377997161,1754658082512,5029.53,0.00031715,30]
[377997165,1754658175363,243.92616752,0.000199,2]
[377997166,1754658175461,243.92616749,0.00021655,2]
[377997167,1754658175537,243.92616749,0.00023409,2]
[377997206,1754658369753,150.0,0.00031715,30]
[377997211,1754658566188,-166.0,0.00024512,2]
[377997212,1754658566715,-252.0,0.00024513,2]
[377997213,1754658566736,-300.0,0.00024513,2]
[377997214,1754658566757,-519.76,0.00024513,2]
[377997215,1754658566778,-460.0,0.00024513,2]
[377997216,1754658566798,-300.0,0.00024513,2]
[377997217,1754658566818,-300.0,0.00024513,2]
[377997218,1754658566840,-24900.0,0.00024514,2]
[377997219,1754658566863,-445.80155172,0.00024557,2]
[377997220,1754658566886,-189.654673,0.0002456,3]
[377997221,1754658566906,-500.0,0.00024656,2]
[377997222,1754658566927,-500.0,0.00024656,2]
[377997223,1754658566950,-490.79340659,0.00024656,2]
[377997224,1754658566972,-500.0,0.00024656,2]
[377997225,1754658566993,-500.0,0.00024656,2]
[377997226,1754658567012,-500.0,0.00024656,2]
[377997227,1754658567032,-500.0,0.00024656,2]
[377997228,1754658567051,-500.0,0.00024656,2]
[377997229,1754658567071,-500.0,0.00024656,2]
[377997230,1754658567093,-500.0,0.00024656,2]
[377997231,1754658567113,-500.0,0.00024656,2]
[377997232,1754658567132,-500.0,0.00024656,2]
[377997233,1754658567153,-500.0,0.00024656,2]
[377997234,1754658567172,-500.0,0.00024656,2]
[377997235,1754658567194,-500.0,0.00024656,2]
[377997236,1754658567214,-500.0,0.00024656,2]
[377997237,1754658567236,-500.0,0.00024656,2]
[377997238,1754658567256,-500.0,0.00024656,2]
[377997239,1754658567276,-463.44711556,0.00024656,2]
[377997240,1754658567298,-456.30404507,0.00024656,2]
[377997241,1754658567318,-559.57951654,0.00024656,2]
[377997242,1754658567339,-50000.0,0.00024657,2]
[377997243,1754658567359,-181.0231983,0.00024657,2]
[377997244,1754658567378,-500.0,0.00024673,2]
[377997245,1754658567398,-150.59680682,0.00024783,7]
[377997246,1754658567418,-519.76,0.00024787,2]
[377997247,1754658567439,-460.0,0.00024787,2]
[377997248,1754658567460,-189.654673,0.00024927,2]
[377997249,1754658567484,-519.76,0.00025061,2]
[377997250,1754658567507,-460.0,0.00025061,2]
[377997251,1754658567534,-243.92616749,0.00025164,2]
[377997252,1754658567555,-503.63795787,0.00025221,2]
[377997253,1754658567580,-519.76,0.00025335,2]
[377997254,1754658567603,-460.0,0.00025335,2]
[377997255,1754658567626,-776.22,0.00025436,2]
[377997256,1754658567647,-460.0,0.00025436,2]
[377997257,1754658567669,-460.0,0.00025436,2]
[377997258,1754658567690,-495.46,0.00025436,2]
[377997259,1754658567712,-445.80155169,0.00025565,2]
[377997260,1754658567735,-519.76,0.00025609,2]
[377997261,1754658567756,-460.0,0.00025609,2]
[377997262,1754658567780,-432.29,0.000257,10]
[377997263,1754658567801,-460.0,0.00025709,2]
[377997264,1754658567821,-460.0,0.00025709,2]
[377997265,1754658567845,-460.0,0.00025709,2]
[377997266,1754658567867,-460.0,0.00025709,2]
[377997267,1754658567888,-776.22,0.0002571,2]
[377997268,1754658567913,-460.0,0.0002571,2]
[377997269,1754658568090,-460.0,0.0002571,2]
[377997270,1754658568116,-495.46,0.0002571,2]
[377997271,1754658568138,-271.1114636,0.00025728,2]
[377997272,1754658568160,-500.0,0.00025728,2]
[377997273,1754658568183,-194.70637071,0.00025728,2]
[377997274,1754658568204,-64926.67160184,0.00025729,2]
[377997333,1754658632467,-472.7,0.00024513,2]
[377997337,1754658632477,-472.7,0.00024787,2]
[377997340,1754658632486,-472.7,0.00025061,2]
[377997343,1754658632495,-472.7,0.00025335,2]
[377997346,1754658632505,-461.45099301,0.00025428,2]
[377997349,1754658632514,-300.0,0.00025728,2]
[377997352,1754658632526,-2132.83388627,0.00025729,2]
[377997355,1754658632538,-68285.2610798,0.00025729,2]
[377997358,1754658632550,-67392.50997509,0.00025729,2]
[377997361,1754658632559,-200.0,0.00025739,15]
[377997365,1754658632570,-300.0,0.00025739,15]
[377997367,1754658632579,-500.0,0.00025773,2]
[377997371,1754658632589,-500.0,0.00025773,2]
[377997376,1754658632600,-500.0,0.00025773,2]
[377997379,1754658632610,-500.0,0.00025773,2]
[377997383,1754658632619,-500.0,0.00025773,2]
[377997386,1754658632628,-500.0,0.00025773,2]
[377997389,1754658632637,-500.0,0.00025773,2]
[377997392,1754658632647,-500.0,0.00025773,2]
[377997394,1754658632656,-500.0,0.00025773,2]
[377997396,1754658632666,-500.0,0.00025773,2]
[377997398,1754658632676,-500.0,0.00025773,2]
[377997400,1754658632685,-573.52765742,0.00025773,2]
[377997402,1754658632694,-500.0,0.00025773,2]
[377997404,1754658632704,-500.0,0.00025773,2]
[377997406,1754658632713,-500.0,0.00025773,2]
[377997408,1754658632723,-500.0,0.00025773,2]
[377997410,1754658632732,-500.0,0.00025773,2]
[377997412,1754658632741,-606.42121849,0.00025773,2]
[377997414,1754658632751,-152.25670052,0.00025874,2]
[377997416,1754658632760,-1749.91955046,0.00025874,2]
[377997418,1754658632769,-519.76,0.00025883,2]
[377997420,1754658632779,-460.0,0.00025883,2]
[377997422,1754658632788,-578.97,0.00025964,3]
[377997424,1754658632797,-289.48,0.00025964,3]
[377997426,1754658632807,-868.47,0.00025964,3]
[377997428,1754658632817,-160.0,0.00025966,2]
[377997430,1754658632826,-160.0,0.00025967,2]
[377997432,1754658632835,-842.78739015,0.00025968,2]
[377997434,1754658632844,-160.0,0.00025968,2]
[377997436,1754658632855,-500.0,0.00025973,2]
[377997438,1754658632865,-500.0,0.00025973,2]
[377997440,1754658632874,-500.0,0.00025973,2]
[377997442,1754658632884,-460.0,0.00025983,2]
[377997444,1754658632893,-460.0,0.00025983,2]
[377997446,1754658632902,-460.0,0.00025983,2]
[377997448,1754658632914,-460.0,0.00025983,2]
[377997450,1754658632923,-776.22,0.00025984,2]
[377997452,1754658632933,-460.0,0.00025984,2]
[377997454,1754658632942,-460.0,0.00025984,2]
[377997456,1754658632951,-495.46,0.00025984,2]
[377997458,1754658632961,-460.0,0.00025984,2]
[377997460,1754658632970,-160.897,0.00026006,12]
[377997462,1754658632980,-519.76,0.00026157,2]
[377997464,1754658632989,-460.0,0.00026157,2]
[377997466,1754658632999,-460.0,0.00026257,2]
[377997468,1754658633009,-460.0,0.00026257,2]
[377997470,1754658633019,-460.0,0.00026257,2]
[377997472,1754658633028,-460.0,0.00026257,2]
[377997474,1754658633038,-776.22,0.00026258,2]
[377997477,1754658633049,-460.0,0.00026258,2]
[377997479,1754658633058,-460.0,0.00026258,2]
[377997481,1754658633069,-495.46,0.00026258,2]
[377997482,1754658633078,-460.0,0.00026258,2]
[377997484,1754658633087,-500.0,0.00026273,2]
[377997487,1754658633097,-500.0,0.00026273,2]
[377997489,1754658633107,-189.654673,0.00026312,3]
[377997491,1754658633116,-1000.0,0.00026321,2]
[377997493,1754658633126,-1000.0,0.00026321,2]
[377997495,1754658633136,-1000.0,0.00026321,2]
[377997497,1754658633145,-767.17524689,0.00026321,2]
[377997625,1754658638263,-231.87430077,0.00025061,2]
[377997627,1754658638274,-472.7,0.00025609,2]
[377997629,1754658638283,-339.95327962,0.00025728,2]
[377997630,1754658638292,-328.47822723,0.00025728,2]
[377997632,1754658638302,-273.71634617,0.00025728,2]
[377997634,1754658638311,-472.7,0.00025883,2]
[377997636,1754658638320,-472.7,0.00026157,2]
[377997638,1754658638330,-232.82475311,0.00026321,2]
[377997640,1754658638339,-478.2131649,0.00026321,2]
[377997644,1754658638371,-526.07707495,0.00026321,2]
[377997646,1754658638381,-1000.0,0.00026321,2]
[377997648,1754658638390,-1000.0,0.00026321,2]
[377997650,1754658638399,-1000.0,0.00026321,2]
[377997651,1754658638408,-519.76,0.00026431,2]
[377997652,1754658638418,-530.38906764,0.00026431,2]
[377997653,1754658638427,-472.7,0.00026431,2]
[377997654,1754658638437,-15000.00000001,0.00026432,2]
[377997655,1754658638446,-189.77802452,0.0002651,2]
[377997656,1754658638456,-486.2944595,0.0002651,2]
[377997657,1754658638465,-26193.62216801,0.00026511,2]
[377997658,1754658638477,-57220.45242736,0.00026511,2]
[377998193,1754658646355,-7706.40630013,0.00026511,2]
[377998194,1754658646465,-315.56071227,0.00026511,2]
[377998220,1754659330139,50000.0,0.00031704,30]
[377998221,1754659332195,50000.0,0.00031704,30]
[377998224,1754659416039,50000.0,0.00027,30]
[377998228,1754659533143,-334.35116382,0.00024413,2]
[377998229,1754659533366,-300.0,0.00024498,2]
[377998230,1754659533388,-842.78739015,0.00024498,2]
[377998231,1754659533411,-160.0,0.00024498,2]
[377998232,1754659533435,-160.0,0.00024498,2]
[377998233,1754659533458,-461.45099301,0.00024498,2]
[377998234,1754659533483,-460.0,0.00024499,2]
[377998235,1754659533508,-348.4848222,0.00024499,2]
[377998247,1754659639099,211.40267853,0.000199,2]
[377998248,1754659639181,211.40267849,0.00021655,2]
[377998249,1754659639321,211.40267849,0.00023409,2]
[377998269,1754659729124,1444320.52112052,0.0002489,30]
[377998270,1754659729775,157.61,0.00024,14]
[377998309,1754659836988,-461.45099301,0.00024499,2]
[377998310,1754659836998,-460.0,0.00024499,2]
[377998311,1754659837007,-460.0,0.00024499,2]
[377998312,1754659837016,-300.0,0.00024499,2]
[377998313,1754659837026,-160.0,0.000245,2]
[377998314,1754659837035,-1248.11900399,0.000245,2]
[377998368,1754659838475,-571.66105847,0.000245,2]
[377998549,1754659840624,-842.78739015,0.000245,2]
[377998551,1754659840634,-160.0,0.000245,2]
[377998553,1754659840643,-142624.25993754,0.000245,2]
[377998555,1754659840653,-460.0,0.00024513,2]
[377998557,1754659840662,-553.50280124,0.00024513,2]
[377998559,1754659840671,-460.0,0.00024513,2]
[377998561,1754659840682,-646.85,0.00024513,2]
[377998563,1754659840691,-460.0,0.00024513,2]
[377998565,1754659840700,-460.0,0.00024513,2]
[377998567,1754659840709,-151.723738,0.0002456,3]
[377998569,1754659840718,-289.48,0.00024763,3]
[377998571,1754659840727,-868.46,0.00024763,3]
[377998573,1754659840736,-406.14686165,0.00024773,2]
[377998836,1754659843361,203.85258309,0.000199,2]
[377998849,1754659843483,203.85258282,0.00021785,2]
[377998859,1754659843569,203.85258282,0.00023669,2]
[377998874,1754659843694,-53.85313835,0.00024773,2]
[377998876,1754659843703,-228.50592235,0.00024773,2]
[377998947,1754659844370,-231.49407765,0.00024773,2]
[377998949,1754659844380,-109.29196337,0.00024773,2]
[377999147,1754659846518,-460.0,0.00024513,2]
[377999148,1754659846528,-350.70803663,0.00024773,2]
[377999149,1754659846538,-460.0,0.00024787,2]
[377999150,1754659846547,-460.0,0.00024787,2]
[377999151,1754659846557,-646.85,0.00024787,2]
[377999152,1754659846567,-460.0,0.00024787,2]
[377999153,1754659846576,-500.0,0.00024873,2]
[377999154,1754659846586,-275.17256756,0.00024873,2]
[377999155,1754659846595,-152.25670052,0.0002489,2]
[377999156,1754659846605,-340.40612165,0.00024899,2]
[377999157,1754659846615,-17320.20655964,0.000249,2]
[377999158,1754659846631,-6780.54953818,0.000249,2]
[377999166,1754660033740,203.85258282,0.000199,2]
[377999167,1754660033811,203.85258282,0.0002202,2]
[377999168,1754660033973,203.85258282,0.0002414,2]
[377999187,1754660398728,203.85258282,0.000199,2]
[377999188,1754660398762,203.85258282,0.00022323,2]
[377999192,1754660591918,605.27375019,0.00021379,6]
[377999193,1754660591980,605.99957061,0.00021593,6]
[377999194,1754660597848,162.06,0.00030136,120]
[377999212,1754660821445,1000.0,0.00023499,2]
[377999253,1754661032788,-292.55726829,0.00024399,2]
[377999255,1754661032798,-160.0,0.00024496,2]
[377999257,1754661032807,-160.0,0.00024496,2]
[377999259,1754661032816,-160.0,0.00024497,2]
[377999261,1754661032825,-842.78739015,0.00024497,2]
[377999263,1754661032835,-12663.41139009,0.00024497,2]
[377999265,1754661032844,-253.29003,0.00024499,2]
[377999266,1754661032854,-460.0,0.00024499,2]
[377999268,1754661032864,-460.0,0.00024499,2]
[377999270,1754661032873,-460.0,0.00024499,2]
[377999272,1754661032882,-460.0,0.00024499,2]
[377999274,1754661032892,-460.0,0.00024499,2]
[377999276,1754661032901,-460.0,0.00024499,2]
[377999278,1754661032911,-460.0,0.00024499,2]
[377999280,1754661032920,-460.0,0.00024499,2]
[377999282,1754661032929,-568.24,0.00024499,2]
[377999284,1754661032939,-460.0,0.00024499,2]
[377999286,1754661032951,-2051.66,0.00024499,2]
[377999288,1754661032960,-2051.66,0.00024499,2]
[377999290,1754661032970,-2051.66,0.00024499,2]
[377999292,1754661032979,-2051.66,0.00024499,2]
[377999294,1754661032988,-2051.66,0.00024499,2]
[377999296,1754661032997,-2051.66,0.00024499,2]
[377999298,1754661033006,-2051.66,0.00024499,2]
[377999300,1754661033016,-460.0,0.00024499,2]
[377999302,1754661033025,-15955.73,0.000245,2]
[377999304,1754661033034,-151.723738,0.000246,3]
[377999306,1754661033044,-460.0,0.00024773,2]
[377999308,1754661033054,-460.0,0.00024773,2]
[377999310,1754661033063,-460.0,0.00024773,2]
[377999312,1754661033073,-460.0,0.00024773,2]
[377999314,1754661033083,-460.0,0.00024773,2]
[377999316,1754661033093,-460.0,0.00024773,2]
[377999317,1754661033102,-460.0,0.00024773,2]
[377999319,1754661033112,-460.0,0.00024773,2]
[377999321,1754661033122,-568.24,0.00024773,2]
[377999323,1754661033132,-341.4,0.00024773,2]
[377999325,1754661033141,-460.0,0.00024773,2]
[377999327,1754661033151,-500.0,0.00024899,2]
[377999329,1754661033160,-151.0,0.00024899,2]
[377999331,1754661033170,-151.0,0.00024899,2]
[377999333,1754661033180,-2051.66,0.00024899,2]
[377999335,1754661033189,-2051.66,0.00024899,2]
[377999337,1754661033203,-2051.66,0.00024899,2]
[377999339,1754661033213,-2051.66,0.00024899,2]
[377999341,1754661033223,-2051.66,0.00024899,2]
[377999343,1754661033232,-2051.66,0.00024899,2]
[377999345,1754661033241,-2051.66,0.00024899,2]
[377999347,1754661033251,-2051.66,0.00024899,2]
[377999349,1754661033261,-2051.66,0.00024899,2]
[377999351,1754661033271,-2051.66,0.00024899,2]
[377999353,1754661033280,-2051.66,0.00024899,2]
[377999355,1754661033289,-2051.66,0.00024899,2]
[377999357,1754661033299,-2051.66,0.00024899,2]
[377999359,1754661033308,-2051.66,0.00024899,2]
[377999361,1754661033317,-2051.66,0.00024899,2]
[377999363,1754661033327,-2051.66,0.00024899,2]
[377999365,1754661033337,-2051.85208898,0.00024899,2]
[377999367,1754661033346,-151.723738,0.0002499,2]
[377999369,1754661033356,-700.0,0.00025,2]
[377999371,1754661033365,-556.38588984,0.00025047,2]
[377999372,1754661033375,-460.0,0.00025047,2]
[377999374,1754661033385,-460.0,0.00025047,2]
[377999376,1754661033395,-460.0,0.00025047,2]
[377999378,1754661033404,-460.0,0.00025047,2]
[377999380,1754661033414,-460.0,0.00025047,2]
[377999382,1754661033423,-460.0,0.00025047,2]
[377999384,1754661033432,-460.0,0.00025047,2]
[377999386,1754661033441,-568.24,0.00025047,2]
[377999388,1754661033454,-460.0,0.00025047,2]
[377999390,1754661033464,-150.0,0.00025169,2]
[377999392,1754661033473,-500.0,0.00025173,2]
[377999394,1754661033483,-198.0,0.00025173,2]
[377999396,1754661033492,-151.0,0.00025173,2]
[377999398,1754661033501,-500.0,0.00025238,2]
[377999400,1754661033511,-460.0,0.00025321,2]
[377999402,1754661033520,-460.0,0.00025321,2]
[377999404,1754661033529,-460.0,0.00025321,2]
[377999406,1754661033539,-460.0,0.00025321,2]
[377999408,1754661033548,-299.528462,0.00025321,2]
[377999410,1754661033562,-460.0,0.00025321,2]
[377999412,1754661033573,-460.0,0.00025321,2]
[377999414,1754661033582,-568.24,0.00025321,2]
[377999416,1754661033591,-460.0,0.00025321,2]
[377999417,1754661033602,-250.0,0.00025387,2]
[377999419,1754661033612,-292.55726829,0.00025425,2]
[377999421,1754661033621,-157.0,0.00025447,2]
[377999423,1754661033631,-151.0,0.00025447,2]
[377999425,1754661033640,-576.26937951,0.00025585,2]
[377999427,1754661033653,-1728.80813853,0.00025589,2]
[377999429,1754661033663,-460.0,0.00025595,2]
[377999431,1754661033674,-460.0,0.00025595,2]
[377999433,1754661033683,-460.0,0.00025595,2]
[377999435,1754661033693,-460.0,0.00025595,2]
[377999437,1754661033706,-460.0,0.00025595,2]
[377999439,1754661033716,-460.0,0.00025595,2]
[377999441,1754661033726,-568.24,0.00025595,2]
[377999443,1754661033736,-460.0,0.00025595,2]
[377999445,1754661033746,-238.28428515,0.00025598,2]
[377999447,1754661033756,-124122.79583916,0.00025599,2]
[377999450,1754661033769,-253.29003,0.00025599,2]
[377999452,1754661033781,-803.79831121,0.00025599,2]
[377999454,1754661033792,-970.84999966,0.00025599,2]
[377999769,1754661038702,-6507.00981378,0.00025599,2]
[377999770,1754661038812,-4843.00946538,0.00025599,2]
[377999771,1754661038824,-5252.05896771,0.00025599,2]
[377999772,1754661038870,-5056.85840394,0.00025599,2]
[378000140,1754661043652,-19910.00644198,0.00025599,2]
[378000269,1754661061651,500.0,0.0003,120]
[378000281,1754661512658,24900.0,0.00023545,2]
[378000285,1754661635747,161.1285379,0.00013699,2]
[378000288,1754661673079,150.0,0.00024,7]
[378000297,1754661965668,1040.0,0.000244,30]
[378000398,1754662237808,-160.0,0.00024496,2]
[378000400,1754662237818,-842.78739015,0.00024496,2]
[378000402,1754662237828,-625.00873834,0.00024496,2]
[378000405,1754662237837,-1200.0,0.00024656,2]
[378000407,1754662237846,-6020.35245748,0.00024657,2]
[378000409,1754662237857,-455.18249544,0.00024657,2]
[378000411,1754662237869,-2998.44269599,0.00024657,2]
[378000414,1754662237881,-652.66070144,0.00024657,2]
[378000415,1754662237892,-7838.56611319,0.00024657,2]
[378000418,1754662237903,-32034.79553646,0.00024657,2]
[378000420,1754662237916,-474.56,0.00024657,2]
[378000422,1754662237925,-460.0,0.00024657,2]
[378000424,1754662237935,-460.0,0.00024657,2]
[378000426,1754662237945,-460.0,0.00024657,2]
[378000428,1754662237955,-460.0,0.00024657,2]
[378000429,1754662237964,-460.0,0.00024657,2]
[378000431,1754662237974,-460.0,0.00024657,2]
[378000433,1754662237984,-452.40015317,0.00024657,2]
[378000435,1754662237993,-160.0,0.00024768,2]
[378000437,1754662238002,-460.0,0.00024772,2]
[378000439,1754662238012,-474.56,0.00024931,2]
[378000441,1754662238021,-460.0,0.00024931,2]
[378000443,1754662238035,-460.0,0.00024931,2]
[378000445,1754662238044,-460.0,0.00024931,2]
[378000448,1754662238054,-460.0,0.00024931,2]
[378000450,1754662238063,-460.0,0.00024931,2]
[378000453,1754662238072,-460.0,0.00024931,2]
[378000454,1754662238081,-200.0,0.00025,2]
[378000455,1754662238090,-460.0,0.00025046,2]
[378000457,1754662238100,-971.0,0.00025086,2]
[378000459,1754662238109,-636.0,0.00025086,2]
[378000460,1754662238118,-2149.0,0.00025086,2]
[378000462,1754662238128,-150.0,0.00025128,2]
[378000464,1754662238137,-151.723738,0.00025184,3]
[378000466,1754662238146,-474.56,0.00025205,2]
[378000468,1754662238156,-460.0,0.00025205,2]
[378000469,1754662238168,-460.0,0.00025205,2]
[378000472,1754662238178,-460.0,0.00025205,2]
[378000474,1754662238187,-460.0,0.00025205,2]
[378000476,1754662238196,-460.0,0.00025205,2]
[378000477,1754662238205,-460.0,0.00025205,2]
[378000480,1754662238215,-151.0,0.00025224,2]
[378000481,1754662238224,-151.0,0.00025224,2]
[378000483,1754662238233,-151.0,0.00025224,2]
[378000485,1754662238242,-460.0,0.0002532,2]
[378000487,1754662238252,-474.56,0.00025479,2]
[378000488,1754662238261,-460.0,0.00025479,2]
[378000489,1754662238271,-460.0,0.00025479,2]
[378000490,1754662238280,-460.0,0.00025479,2]
[378000491,1754662238289,-460.0,0.00025479,2]
[378000492,1754662238299,-460.0,0.00025479,2]
[378000493,1754662238308,-460.0,0.00025479,2]
[378000494,1754662238317,-151.723738,0.00025482,2]
[378000495,1754662238330,-460.0,0.00025594,2]
[378000496,1754662238339,-234.63184195,0.00025599,2]
[378000497,1754662238349,-151.0,0.00025659,2]
[378000498,1754662238358,-474.56,0.00025753,2]
[378000499,1754662238367,-460.0,0.00025753,2]
[378000500,1754662238377,-460.0,0.00025753,2]
[378000501,1754662238387,-540.46,0.00025753,2]
[378000502,1754662238396,-460.0,0.00025753,2]
[378000503,1754662238406,-460.0,0.00025753,2]
[378000504,1754662238420,-460.0,0.00025753,2]
[378000505,1754662238430,-460.0,0.00025868,2]
[378000506,1754662238439,-1735.24914948,0.0002587,2]
[378000507,1754662238449,-326.42,0.0002587,3]
[378000508,1754662238459,-163.21,0.0002587,3]
[378000509,1754662238468,-152.25670052,0.00025873,2]
[378000510,1754662238478,-6700.18,0.0002588,2]
[378000511,1754662238489,-200.0,0.00025889,15]
[378000512,1754662238499,-177.20315654,0.00025933,2]
[378000513,1754662238508,-319.12,0.00025952,10]
[378000514,1754662238518,-489.66,0.00025953,3]
[378000515,1754662238528,-280.45724749,0.00025962,2]
[378000516,1754662238538,-166.7989996,0.00025962,2]
[378000517,1754662238548,-17175.61004682,0.00025963,2]
[378000518,1754662238560,-4712.77676424,0.00025963,2]
[378000519,1754662238575,-3358.05433388,0.00025963,2]
[378000520,1754662238586,-4566.6366676,0.00025963,2]
[378000576,1754662239938,-10202.02413487,0.00025963,2]
[378000578,1754662239949,-12411.48,0.00025963,2]
[378000879,1754662243934,-460.0,0.00024657,2]
[378000880,1754662243944,-9577.91572127,0.00025963,2]
[378000936,1754662246248,-1511.7,0.000245,2]
[378000938,1754662246258,-166.79,0.00024771,2]
[378000940,1754662246267,-34008.117633,0.00025963,2]
[378000943,1754662246279,-3896.04010622,0.00025963,2]
[378001244,1754662308557,210.0,0.00025,120]
[378001245,1754662309884,157.0,0.000242,4]
[378001246,1754662338375,158.13477664,0.000242,5]
[378001253,1754662456402,171.07633579,0.000199,2]
[378001254,1754662456490,171.0763356,0.00021655,2]
[378001255,1754662456574,171.0763356,0.00023409,2]
[378001261,1754662647877,206.26418224,0.000199,2]
[378001262,1754662647987,206.26418212,0.00022444,2]
[378001269,1754662847495,4221.91162945,0.000199,2]
[378001270,1754662847599,4221.91162919,0.00021655,2]
[378001271,1754662847688,4221.91162919,0.00023409,2]
[378001286,1754663043695,3796.12307889,0.000199,2]
[378001287,1754663043789,3796.12307865,0.00021655,2]
[378001288,1754663043879,3796.12307865,0.00023409,2]
[378001292,1754663110956,398.45329148,0.00028,30]
[378001304,1754663231892,326.5235466,0.000199,2]
[378001305,1754663232010,326.52354642,0.00021655,2]
[378001306,1754663232092,326.52354642,0.00023409,2]
[378001330,1754663336639,52440.11931999,0.00031683,30]
[378001881,1754663438025,-300.0,0.00024235,2]
[378001883,1754663438034,-181.60193922,0.00024236,2]
[378001885,1754663438043,-10237.18436028,0.00024236,5]
[378001887,1754663438053,-842.78739015,0.00024493,2]
[378001889,1754663438063,-160.0,0.00024493,2]
[378001890,1754663438071,-160.0,0.00024494,2]
[378001893,1754663438081,-152.179415,0.000246,3]
[378001895,1754663438091,-15219.51617991,0.00024657,2]
[378001897,1754663438100,-454.65855995,0.00024657,2]
[378001899,1754663438110,-460.0,0.00024657,2]
[378001902,1754663438119,-460.0,0.00024657,2]
[378001903,1754663438128,-460.0,0.00024657,2]
[378001905,1754663438138,-460.0,0.00024657,2]
[378001907,1754663438147,-256.07142061,0.00024657,2]
[378001909,1754663438156,-460.0,0.00024657,2]
[378001911,1754663438164,-460.0,0.00024657,2]
[378001913,1754663438174,-397.49481728,0.00024657,2]
[378001915,1754663438183,-460.0,0.00024657,2]
[378001917,1754663438192,-460.0,0.00024657,2]
[378001919,1754663438201,-460.0,0.00024657,2]
[378001921,1754663438210,-490.93167602,0.00024657,2]
[378002071,1754663440225,-526.3015484,0.00024494,2]
[378002338,1754663443541,-1980.95,0.00024494,2]
[378002445,1754663446193,-2055.48713809,0.00024494,2]
[378002459,1754663639479,3536.38400014,0.000199,2]
[378002460,1754663639561,3536.38399988,0.00021655,2]
[378002461,1754663639673,3536.38399988,0.00023409,2]
[378002467,1754663829852,3182.71876494,0.000199,2]
[378002468,1754663830398,3182.71876469,0.00021655,2]
[378002469,1754663830553,3182.71876469,0.00023409,2]
[378002473,1754664044814,24900.0,0.00024003,2]
[378002490,1754664462362,50000.0,0.00031684,30]
[378002563,1754664632486,-1189.0,0.00024299,2]
[378002618,1754664632999,-300.0,0.00024299,2]
[378002620,1754664633009,-300.0,0.00024299,2]